[Event "46th GRE-chT Premier 2018"]
[Site "Rio Achaia"]
[Date "2018.07.11"]
[Round "2"]
[White "Skaraki, Antigoni"]
[Black "Cibickova, Zuzana"]
[Result "0-1"]
[ECO "C77"]
[WhiteElo "2027"]
[BlackElo "2292"]
[Annotator "ChessBase"]
[PlyCount "116"]
[EventDate "2018.07.10"]
[EventType "team-tourn"]
[EventCountry "GRE"]
[SourceTitle "playchess.com"]
[Source "ChessBase"]
[SourceQuality "1"]
[TimeControl "40/5400+30:1800+30"]

1. e4 {[%emt 0:00:00]} e5 {[%emt 0:00:00]} 2. Nf3 {[%emt 0:00:00]} Nc6 {[%emt 0:00:00]} 3. Bb5 {[%emt 0:00:00]} a6 {[%emt 0:00:00]} 4. Ba4 {[%emt 0:00:00]} Nf6 {[%emt 0:00:00]} 5. d3 {[%emt 0:00:00]} d6 {[%emt 0:00:00]} 6. c3 {[%emt 0:00:00]} g6 {[%emt 0:00:08]} 7. Nbd2 {[%emt 0:00:00]} Bg7 {[%emt 0:00:05]} 8. Nf1 {[%emt 0:00:05]} O-O {[%emt 0:00:28]} 9. Bg5 {[%emt 0:00:07]} d5 {[%emt 0:05:21]} 10. exd5 {[%emt 0:09:01]} Qxd5 {[%emt 0:00:18]} 11. Ne3 {[%emt 0:04:24]} Qd6 {[%emt 0:00:10]} 12. Nc4 {[%emt 0:15:41]} Qe6 {[%emt 0:02:40]} 13. Bxc6 {[%emt 0:01:57]} bxc6 {[%emt 0:00:02]} 14. O-O {[%emt 0:13:30]} Nd5 {[%emt 0:03:44]} 15. Re1 {[%emt 0:06:34]} f6 {[%emt 0:02:14]} 16. Bh4 {[%emt 0:02:53]} c5 {[%emt 0:14:47]} 17. Bg3 {[%emt 0:10:22]} Bd7 {[%emt 0:24:56]} 18. Nfd2 {[%emt 0:10:08]} Qc6 {[%emt 0:13:31]} 19. Qf3 {[%emt 0:06:48]} Nb6 {[%emt 0:13:25]} 20. Qxc6 {[%emt 0:01:54]} Bxc6 {[%emt 0:00:01]} 21. Na5 {[%emt 0:01:21]} Bd5 {[%emt 0:00:13]} 22. c4 {[%emt 0:08:36]} Bf7 {[%emt 0:00:09]} 23. Ne4 {[%emt 0:00:45]} Nd7 {[%emt 0:02:49]} 24. Nb3 Rfb8 {[%emt 0:00:26]} 25. Re2 {[%emt 0:01:39]} g5 {[%emt 0:06:56]} 26. Nexc5 {[%emt 0:01:45]} Nxc5 {[%emt 0:00:15]} 27. Nxc5 {[%emt 0:00:02]} Rd8 {[%emt 0:00:08]} 28. h4 {[%emt 0:05:04]} h6 {[%emt 0:02:33]} 29. hxg5 {[%emt 0:00:01]} hxg5 {[%emt 0:00:07]} 30. b3 {[%emt 0:00:54]} Bf8 {[%emt 0:01:28]} 31. Ne4 {[%emt 0:00:10]} Be7 {[%emt 0:00:05]} 32. Rd1 {[%emt 0:01:38]} Rd7 {[%emt 0:00:04]} 33. Nc3 {[%emt 0:00:30]} Rad8 {[%emt 0:00:30]} 34. f3 {[%emt 0:00:32]} Rxd3 {[%emt 0:01:42]} 35. Rxd3 {[%emt 0:00:03]} Rxd3 {[%emt 0:00:07]} 36. Ne4 {[%emt 0:00:26]} Bg6 {[%emt 0:03:08]} 37. Kf1 {[%emt 0:00:39]} Kf7 {[%emt 0:01:41]} 38. Nf2 {[%emt 0:00:46]} Rd8 {[%emt 0:01:21]} 39. Ne4 {[%emt 0:00:26]} Rh8 {[%emt 0:02:55]} 40. Rd2 {[%emt 0:00:00]} f5 {[%emt 0:00:00]} 41. Nc3 {[%emt 0:14:44]} f4 {[%emt 0:01:17]} 42. Be1 {[%emt 0:00:21]} Rh1+ {[%emt 0:04:54]} 43. Ke2 {[%emt 0:01:47]} Bf5 {[%emt 0:12:08]} 44. Nd5 {[%emt 0:07:46]} Bd6 {[%emt 0:02:24]} 45. Bf2 {[%emt 0:04:03]} e4 {[%emt 0:04:05]} 46. fxe4 {[%emt 0:01:36]} Bxe4 {[%emt 0:00:01]} 47. c5 {[%emt 0:00:49]} Be5 {[%emt 0:00:33]} 48. Nxc7 {[%emt 0:00:18]} Bxg2 {[%emt 0:01:01]} 49. Rd7+ {[%emt 0:00:17]} Kg6 {[%emt 0:00:55]} 50. Nd5 {[%emt 0:01:16]} Ra1 {[%emt 0:03:42]} 51. Nb4 {[%emt 0:03:02]} a5 {[%emt 0:00:29]} 52. Re7 {[%emt 0:00:34]} f3+ {[%emt 0:03:09]} 53. Kd3 {[%emt 0:00:33]} Bf6 {[%emt 0:01:21]} 54. Re6 {[%emt 0:00:36]} axb4 {[%emt 0:00:13]} 55. c6 {[%emt 0:00:23]} Bh3 {[%emt 0:00:53]} 56. Re8 {[%emt 0:00:39]} Rxa2 {[%emt 0:00:28]} 57. Bg3 {[%emt 0:00:32]} Bf1+ {[%emt 0:00:08]} 58. Ke3 {[%emt 0:00:31]} Re2+ {[%emt 0:00:05] Kd4} 0-1

[Event "46th GRE-chT Premier 2018"]
[Site "Rio Achaia"]
[Date "2018.07.11"]
[Round "2"]
[White "Sgouros, Apostolos"]
[Black "Zenelis, Konstantinos"]
[Result "1-0"]
[ECO "C00"]
[WhiteElo "2024"]
[BlackElo "2036"]
[Annotator "NA"]
[PlyCount "59"]
[EventDate "2018.07.10"]
[EventType "team-tourn"]
[EventCountry "GRE"]
[SourceTitle "playchess.com"]
[Source "ChessBase"]
[SourceQuality "1"]
[TimeControl "40/5400+30:1800+30"]

1. e4 {[%emt 0:00:00]} e6 {[%emt 0:00:10]} 2. d3 {[%emt 0:00:00]} c5 {[%emt 0:01:49]} 3. Nf3 {[%emt 0:00:16]} Nc6 {[%emt 0:00:11]} 4. g3 {[%emt 0:02:10]} g6 {[%emt 0:00:11]} 5. Bg2 {[%emt 0:00:33]} Bg7 {[%emt 0:00:08]} 6. O-O {[%emt 0:00:56]} Nge7 {[%emt 0:01:08]} 7. Nc3 {[%emt 0:00:12]} d6 {[%emt 0:01:50]} 8. Bg5 {[%emt 0:02:48]} h6 {[%emt 0:01:07]} 9. Be3 {[%emt 0:00:46]} Nd4 {[%emt 0:03:39]} 10. Qd2 {[%emt 0:04:51]} Rb8 {[%emt 0:02:46]} 11. Nh4 {[%emt 0:13:35]} b5 {[%emt 0:03:31]} 12. f4 {[%emt 0:00:16]} b4 {[%emt 0:04:53]} 13. Nd1 {[%emt 0:01:11]} Qb6 {[%emt 0:17:22]} 14. c3 {[%emt 0:05:24]} bxc3 {[%emt 0:00:22]} 15. bxc3 {[%emt 0:00:05]} Ndc6 {[%emt 0:00:33]} 16. Rc1 {[%emt 0:00:35]} f5 {[%emt 0:14:02]} 17. g4 {[%emt 0:11:21]} O-O {[%emt 0:02:42]} 18. gxf5 {[%emt 0:03:02]} exf5 {[%emt 0:03:10]} 19. Kh1 {[%emt 0:06:38]} Kh7 {[%emt 0:06:39]} 20. Rg1 {[%emt 0:05:23]} Be6 {[%emt 0:08:11]} 21. Bf3 {[%emt 0:05:52]} Bf6 {[%emt 0:03:29]} 22. Qf2 {[%emt 0:08:58]} Qa6 {[%emt 0:02:19]} 23. d4 {[%emt 0:11:41]} cxd4 {[%emt 0:08:32]} 24. cxd4 {[%emt 0:00:11]} Nb4 {[%emt 0:00:22]} 25. Rc7 {[%emt 0:01:26]} Qa5 {[%emt 0:05:34]} 26. Rxe7+ {[%emt 0:03:46]} Bxe7 {[%emt 0:00:04]} 27. Nxg6 {[%emt 0:01:39]} Rf7 {[%emt 0:00:46]} 28. d5 {[%emt 0:03:51]} Bd7 {[%emt 0:01:48]} 29. Nxe7 {[%emt 0:00:42]} Rxe7 {[%emt 0:00:04]} 30. Qg3 {[%emt 0:00:02]} 1-0

[Event "46th GRE-chT Premier 2018"]
[Site "Rio Achaia"]
[Date "2018.07.11"]
[Round "2"]
[White "Dimopoulos, Symeon"]
[Black "Konstantelias, Konstantinos"]
[Result "1/2-1/2"]
[ECO "B01"]
[WhiteElo "2020"]
[BlackElo "1942"]
[Annotator "NA"]
[PlyCount "100"]
[EventDate "2018.07.10"]
[EventType "team-tourn"]
[EventCountry "GRE"]
[SourceTitle "playchess.com"]
[Source "ChessBase"]
[SourceQuality "1"]
[TimeControl "40/5400+30:1800+30"]

1. e4 {[%emt 0:00:00]} d5 {[%emt 0:00:00]} 2. exd5 {[%emt 0:00:12]} Qxd5 {[%emt 0:00:00]} 3. Nc3 {[%emt 0:00:18]} Qd8 {[%emt 0:00:10]} 4. d4 {[%emt 0:00:26]} Nf6 {[%emt 0:00:42]} 5. Bf4 {[%emt 0:04:20]} c6 {[%emt 0:01:41]} 6. h3 {[%emt 0:04:28]} Bf5 {[%emt 0:08:04]} 7. Nf3 {[%emt 0:01:44]} e6 {[%emt 0:02:19]} 8. Bd3 {[%emt 0:01:08]} Bxd3 {[%emt 0:09:57]} 9. Qxd3 {[%emt 0:00:08]} Qa5 {[%emt 0:00:33]} 10. O-O {[%emt 0:03:16]} Be7 {[%emt 0:01:48]} 11. Ne5 {[%emt 0:08:52]} O-O {[%emt 0:17:39]} 12. Ne2 {[%emt 0:19:41]} Rd8 {[%emt 0:04:23]} 13. c3 {[%emt 0:06:32]} Nbd7 {[%emt 0:05:32]} 14. Qf3 {[%emt 0:04:34]} Qd5 {[%emt 0:06:10]} 15. Qe3 {[%emt 0:05:57]} Qe4 {[%emt 0:04:16]} 16. Qxe4 {[%emt 0:05:05]} Nxe4 {[%emt 0:00:03]} 17. Rad1 {[%emt 0:01:46]} Nb6 {[%emt 0:09:24]} 18. f3 {[%emt 0:12:13]} Nd6 {[%emt 0:01:12]} 19. b3 {[%emt 0:09:01]} Nd5 {[%emt 0:02:00]} 20. Bd2 {[%emt 0:00:19]} Nf5 {[%emt 0:05:55]} 21. Kf2 {[%emt 0:00:23]} a5 {[%emt 0:06:25]} 22. f4 {[%emt 0:04:16]} c5 {[%emt 0:01:03]} 23. g4 {[%emt 0:01:26]} Nd6 {[%emt 0:01:29]} 24. Kf3 {[%emt 0:00:56]} f6 {[%emt 0:02:40]} 25. Nd3 {[%emt 0:01:13]} c4 {[%emt 0:01:56]} 26. Nc5 {[%emt 0:01:21]} Kf7 {[%emt 0:00:08]} 27. Ne4 {[%emt 0:00:41]} Nxe4 {[%emt 0:00:32]} 28. Kxe4 {[%emt 0:00:07]} Rac8 {[%emt 0:02:25]} 29. Rb1 {[%emt 0:01:46]} b6 {[%emt 0:03:07]} 30. f5 {[%emt 0:01:12]} e5 {[%emt 0:01:26]} 31. bxc4 {[%emt 0:00:45]} Rxc4 {[%emt 0:00:19]} 32. Rb5 {[%emt 0:00:39]} exd4 {[%emt 0:01:29]} 33. cxd4 {[%emt 0:00:54]} Rc2 {[%emt 0:00:52]} 34. Rxd5 {[%emt 0:00:47]} Rxd5 {[%emt 0:00:32]} 35. Kxd5 {[%emt 0:00:06]} Rxd2 {[%emt 0:00:02]} 36. Nc3 {[%emt 0:00:23]} Bb4 {[%emt 0:00:16]} 37. Rc1 {[%emt 0:00:36]} g6 {[%emt 0:00:42]} 38. Ne4 {[%emt 0:00:35]} Rxa2 {[%emt 0:00:49]} 39. Rc7+ {[%emt 0:00:06]} Be7 {[%emt 0:00:25]} 40. Nd6+ {[%emt 0:00:00]} Kf8 {[%emt 0:00:00]} 41. Nc8 {[%emt 0:06:55]} Bb4 {[%emt 0:11:29]} 42. Nxb6 {[%emt 0:01:29]} gxf5 {[%emt 0:02:40]} 43. gxf5 {[%emt 0:00:16]} h5 {[%emt 0:00:07]} 44. Ke6 {[%emt 0:03:17]} Re2+ {[%emt 0:02:00]} 45. Kxf6 {[%emt 0:07:39]} Be7+ {[%emt 0:00:05]} 46. Kg6 {[%emt 0:00:02]} Rg2+ {[%emt 0:00:05]} 47. Kxh5 {[%emt 0:03:43]} Rg5+ {[%emt 0:01:09]} 48. Kh6 {[%emt 0:00:12]} Rxf5 {[%emt 0:00:06]} 49. Nc8 {[%emt 0:06:02]} Bb4 {[%emt 0:01:06]} 50. Na7 {[%emt 0:03:21]} Rf4 1/2-1/2

[Event "46th GRE-chT Premier 2018"]
[Site "Rio Achaia"]
[Date "2018.07.11"]
[Round "2"]
[White "Papahristoudis, Anastasios"]
[Black "Kordis, Konstantinos"]
[Result "0-1"]
[ECO "E90"]
[WhiteElo "2012"]
[BlackElo "2100"]
[Annotator "NA"]
[PlyCount "56"]
[EventDate "2018.07.10"]
[EventType "team-tourn"]
[EventCountry "GRE"]
[SourceTitle "playchess.com"]
[Source "ChessBase"]
[SourceQuality "1"]
[TimeControl "40/5400+30:1800+30"]

1. d4 {[%emt 0:00:04]} Nf6 {[%emt 0:00:00]} 2. c4 {[%emt 0:00:15]} g6 {[%emt 0:00:07]} 3. Nc3 {[%emt 0:00:19]} Bg7 {[%emt 0:00:07]} 4. e4 {[%emt 0:00:23]} d6 {[%emt 0:00:09]} 5. Nf3 {[%emt 0:00:18]} O-O {[%emt 0:00:13]} 6. h3 {[%emt 0:00:10]} e5 {[%emt 0:00:29]} 7. d5 {[%emt 0:00:20]} a5 {[%emt 0:01:37]} 8. Bg5 {[%emt 0:00:58]} Na6 {[%emt 0:00:19]} 9. Be2 {[%emt 0:02:48]} Qe8 {[%emt 0:01:57]} 10. Nd2 {[%emt 0:05:59]} Nd7 {[%emt 0:00:58]} 11. g4 {[%emt 0:01:35]} Nb6 {[%emt 0:01:53]} 12. Nf1 {[%emt 0:12:53]} a4 {[%emt 0:02:22]} 13. Ng3 {[%emt 0:03:58]} Bd7 {[%emt 0:09:33]} 14. h4 {[%emt 0:07:09]} Rc8 {[%emt 0:07:46]} 15. h5 {[%emt 0:11:42]} c6 {[%emt 0:06:05]} 16. hxg6 {[%emt 0:11:22]} fxg6 {[%emt 0:01:14]} 17. Qd3 {[%emt 0:01:03]} Nb4 {[%emt 0:04:44]} 18. Qd2 {[%emt 0:05:39]} cxd5 {[%emt 0:01:50]} 19. Nxd5 {[%emt 0:00:44]} N4xd5 {[%emt 0:00:59]} 20. cxd5 {[%emt 0:00:24]} Nc4 {[%emt 0:00:49]} 21. Qb4 {[%emt 0:02:13]} Qf7 {[%emt 0:04:58]} 22. Rh2 {[%emt 0:01:12]} b5 {[%emt 0:02:14]} 23. b3 {[%emt 0:01:34]} Nb2 {[%emt 0:00:34]} 24. Rb1 {[%emt 0:04:45]} Rc2 {[%emt 0:00:42]} 25. Be3 {[%emt 0:13:32]} Rfc8 {[%emt 0:09:10]} 26. Qa3 {[%emt 0:01:47]} Rxe2+ {[%emt 0:14:31]} 27. Nxe2 {[%emt 0:02:21]} Nd3+ {[%emt 0:00:08]} 28. Kd2 {[%emt 0:00:55]} b4 {[%emt 0:00:06]} 0-1

[Event "46th GRE-chT Premier 2018"]
[Site "Rio Achaia"]
[Date "2018.07.11"]
[Round "2"]
[White "Kadianis, Georgios"]
[Black "Moshovakis, Aggelos"]
[Result "0-1"]
[ECO "D00"]
[WhiteElo "2002"]
[BlackElo "1964"]
[Annotator "NA"]
[PlyCount "140"]
[EventDate "2018.07.10"]
[EventType "team-tourn"]
[EventCountry "GRE"]
[SourceTitle "playchess.com"]
[Source "ChessBase"]
[SourceQuality "1"]
[TimeControl "40/5400+30:1800+30"]

1. d4 {[%emt 0:05:08]} d5 {[%emt 0:00:00]} 2. Nc3 {[%emt 0:00:27]} Nf6 {[%emt 0:00:25]} 3. Bf4 {[%emt 0:00:23]} e6 {[%emt 0:03:53]} 4. e3 {[%emt 0:00:20]} Bd6 {[%emt 0:00:21]} 5. Qd2 {[%emt 0:01:12]} b6 {[%emt 0:07:22]} 6. Nf3 {[%emt 0:01:13]} Bb7 {[%emt 0:00:41]} 7. Ne5 {[%emt 0:08:05]} a6 {[%emt 0:02:07]} 8. f3 {[%emt 0:10:31]} Nh5 {[%emt 0:04:58]} 9. O-O-O {[%emt 0:03:06]} Nd7 {[%emt 0:07:04]} 10. Nxd7 {[%emt 0:08:26]} Qxd7 {[%emt 0:00:59]} 11. Bg5 {[%emt 0:04:29]} h6 {[%emt 0:10:34]} 12. Bh4 {[%emt 0:00:07]} g5 {[%emt 0:00:12]} 13. Bf2 {[%emt 0:00:10]} O-O-O {[%emt 0:00:25]} 14. Kb1 {[%emt 0:01:15]} Kb8 {[%emt 0:03:30]} 15. e4 {[%emt 0:03:50]} dxe4 {[%emt 0:01:09]} 16. fxe4 {[%emt 0:02:41]} f5 {[%emt 0:01:06]} 17. Bd3 {[%emt 0:12:57]} Nf4 {[%emt 0:04:26]} 18. Bg3 {[%emt 0:05:32]} Nxd3 {[%emt 0:02:06]} 19. Qxd3 {[%emt 0:00:28]} Bb4 {[%emt 0:02:27]} 20. Be5 {[%emt 0:03:55]} Rhf8 {[%emt 0:01:33]} 21. exf5 {[%emt 0:03:02]} exf5 {[%emt 0:02:17]} 22. Rd2 {[%emt 0:01:26]} Ka7 {[%emt 0:07:04]} 23. Rhd1 {[%emt 0:02:48]} Rde8 {[%emt 0:09:57]} 24. Qc4 {[%emt 0:01:49]} Bd6 {[%emt 0:00:50]} 25. a4 {[%emt 0:06:33]} Qe6 {[%emt 0:03:25]} 26. Qxe6 {[%emt 0:03:18]} Rxe6 {[%emt 0:00:05]} 27. Bxd6 {[%emt 0:02:46]} cxd6 {[%emt 0:01:10]} 28. d5 {[%emt 0:02:36]} Re5 {[%emt 0:00:21]} 29. Rf2 {[%emt 0:03:20]} Rfe8 {[%emt 0:03:14]} 30. g3 {[%emt 0:01:15]} Bc8 {[%emt 0:02:44]} 31. Rdd2 {[%emt 0:01:30]} Bd7 {[%emt 0:01:11]} 32. b3 {[%emt 0:00:37]} Kb7 {[%emt 0:03:10]} 33. Ne2 {[%emt 0:00:36]} b5 {[%emt 0:00:59]} 34. axb5 {[%emt 0:00:07]} axb5 {[%emt 0:00:10]} 35. c4 {[%emt 0:00:42]} bxc4 {[%emt 0:00:13]} 36. bxc4 {[%emt 0:00:07]} Rc8 {[%emt 0:01:09]} 37. Rb2+ {[%emt 0:00:36]} Kc7 {[%emt 0:00:38]} 38. Kc2 {[%emt 0:01:00]} Kd8 {[%emt 0:00:50]} 39. Kd3 {[%emt 0:00:32]} Ra8 {[%emt 0:01:36]} 40. Nd4 {[%emt 0:00:00]} Ra3+ {[%emt 0:00:00]} 41. Rb3 {[%emt 0:02:46]} Rxb3+ {[%emt 0:02:44]} 42. Nxb3 {[%emt 0:00:45]} Ke7 {[%emt 0:00:37]} 43. Nd2 {[%emt 0:03:13]} Re1 {[%emt 0:01:33]} 44. Kd4 {[%emt 0:03:42]} Rc1 {[%emt 0:00:30]} 45. Nf1 {[%emt 0:02:50]} Rd1+ {[%emt 0:01:36]} 46. Kc3 {[%emt 0:01:01]} Kf6 {[%emt 0:00:29]} 47. Ne3 {[%emt 0:01:04]} Rb1 {[%emt 0:01:08]} 48. Kd4 {[%emt 0:07:45]} h5 {[%emt 0:07:46]} 49. Ra2 {[%emt 0:01:59]} Rb7 {[%emt 0:03:28]} 50. Ra8 {[%emt 0:02:07]} Kg7 {[%emt 0:03:55]} 51. Ra6 {[%emt 0:04:47]} f4 {[%emt 0:00:07]} 52. gxf4 {[%emt 0:01:19]} gxf4 {[%emt 0:00:02]} 53. Ng2 {[%emt 0:00:16]} f3 {[%emt 0:00:22]} 54. Ne3 {[%emt 0:00:14]} Bh3 {[%emt 0:02:40]} 55. Ra2 {[%emt 0:01:47]} Kg6 {[%emt 0:01:00]} 56. Rf2 {[%emt 0:00:27]} Rf7 {[%emt 0:00:30]} 57. Ke4 {[%emt 0:00:49]} Bg4 {[%emt 0:00:11]} 58. c5 {[%emt 0:02:33]} dxc5 {[%emt 0:00:53]} 59. d6 {[%emt 0:00:21]} Kg5 {[%emt 0:00:50]} 60. Nc4 {[%emt 0:00:47]} Rf8 {[%emt 0:04:04]} 61. Ne5 {[%emt 0:00:29]} Re8 {[%emt 0:02:59]} 62. Kd5 {[%emt 0:00:23]} Kf4 {[%emt 0:00:37]} 63. Nd3+ {[%emt 0:00:38]} Ke3 {[%emt 0:00:14]} 64. Kc4 {[%emt 0:00:30]} Re4+ {[%emt 0:01:16]} 65. Kc3 {[%emt 0:00:27]} Rd4 {[%emt 0:01:18]} 66. Nxc5 {[%emt 0:00:35]} Rxd6 {[%emt 0:00:11]} 67. Rf1 {[%emt 0:00:28]} Rc6 {[%emt 0:01:03]} 68. Re1+ {[%emt 0:00:17]} Kf2 {[%emt 0:00:30]} 69. Re5 {[%emt 0:00:18]} Kg2 70. Kd4 {[%emt 0:00:14]} f2 {[%emt 0:00:34]} 0-1

[Event "46th GRE-chT Premier 2018"]
[Site "Rio Achaia"]
[Date "2018.07.11"]
[Round "2"]
[White "Vasiliadis, Anastasios"]
[Black "Lagopatis, Nikolaos"]
[Result "1/2-1/2"]
[ECO "A04"]
[WhiteElo "1997"]
[BlackElo "2100"]
[Annotator "NA"]
[PlyCount "106"]
[EventDate "2018.07.10"]
[EventType "team-tourn"]
[EventCountry "GRE"]
[SourceTitle "playchess.com"]
[Source "ChessBase"]
[SourceQuality "1"]
[TimeControl "40/5400+30:1800+30"]

1. Nf3 {[%emt 0:00:00]} d6 {[%emt 0:01:19]} 2. d4 {[%emt 0:00:31]} Nf6 {[%emt 0:01:00]} 3. g3 {[%emt 0:00:16]} Nbd7 {[%emt 0:02:45]} 4. Bg2 {[%emt 0:00:11]} e5 {[%emt 0:00:20]} 5. dxe5 {[%emt 0:00:40]} dxe5 {[%emt 0:00:11]} 6. O-O {[%emt 0:00:17]} Bc5 {[%emt 0:05:01]} 7. Nc3 {[%emt 0:00:33]} O-O {[%emt 0:00:50]} 8. Bg5 {[%emt 0:00:30]} h6 {[%emt 0:02:17]} 9. Bxf6 {[%emt 0:02:50]} Qxf6 {[%emt 0:00:31]} 10. Ne4 {[%emt 0:00:25]} Qe7 {[%emt 0:00:44]} 11. Nxc5 {[%emt 0:09:37]} Nxc5 {[%emt 0:00:57]} 12. c3 {[%emt 0:07:16]} a5 {[%emt 0:07:04]} 13. Qc2 {[%emt 0:08:52]} Re8 {[%emt 0:03:01]} 14. Rfd1 {[%emt 0:05:37]} Bd7 {[%emt 0:13:22]} 15. b3 {[%emt 0:02:55]} Rad8 {[%emt 0:03:36]} 16. Rac1 {[%emt 0:05:26]} Bc6 {[%emt 0:32:49]} 17. Nh4 {[%emt 0:03:02]} Bxg2 {[%emt 0:00:32]} 18. Nxg2 {[%emt 0:00:33]} g6 {[%emt 0:06:49]} 19. Ne3 {[%emt 0:03:55]} c6 {[%emt 0:01:00]} 20. Rxd8 {[%emt 0:03:08]} Rxd8 {[%emt 0:00:33]} 21. Rd1 {[%emt 0:00:09]} Kg7 {[%emt 0:07:00]} 22. Nc4 {[%emt 0:06:00]} Rxd1+ {[%emt 0:01:56]} 23. Qxd1 {[%emt 0:01:16]} Qc7 {[%emt 0:01:47]} 24. Qd6 {[%emt 0:15:38]} Qxd6 {[%emt 0:00:20]} 25. Nxd6 {[%emt 0:00:06]} b5 {[%emt 0:00:41]} 26. f3 {[%emt 0:07:00]} f5 {[%emt 0:01:16]} 27. Kf2 {[%emt 0:03:39]} Kf6 {[%emt 0:00:42]} 28. b4 {[%emt 0:06:58]} axb4 {[%emt 0:00:45]} 29. cxb4 {[%emt 0:00:05]} Na4 {[%emt 0:00:39]} 30. Nb7 {[%emt 0:00:07]} Ke6 {[%emt 0:00:42]} 31. e4 {[%emt 0:02:48]} Nc3 {[%emt 0:00:42]} 32. Nc5+ {[%emt 0:00:11]} Kd6 {[%emt 0:00:47]} 33. a3 {[%emt 0:00:22]} Nb1 {[%emt 0:01:12]} 34. a4 {[%emt 0:00:21]} bxa4 {[%emt 0:00:28]} 35. Nxa4 {[%emt 0:00:05]} fxe4 {[%emt 0:01:02]} 36. fxe4 {[%emt 0:00:08]} Na3 {[%emt 0:00:55]} 37. Nc5 {[%emt 0:00:40]} Nc2 {[%emt 0:00:42]} 38. Nd3 {[%emt 0:00:10]} h5 {[%emt 0:00:19]} 39. h4 {[%emt 0:00:00]} Ke6 {[%emt 0:00:00]} 40. Nc5+ {[%emt 0:00:00]} Kf6 41. Nd3 {[%emt 0:03:06]} Nd4 {[%emt 0:06:04]} 42. Ke3 {[%emt 0:01:30]} Ke6 {[%emt 0:02:30]} 43. Kf2 {[%emt 0:00:37]} Kd6 {[%emt 0:00:28]} 44. Ke3 {[%emt 0:00:36]} Ne6 {[%emt 0:01:50]} 45. Kf3 {[%emt 0:00:59]} c5 {[%emt 0:02:33]} 46. bxc5+ {[%emt 0:00:15]} Nxc5 {[%emt 0:00:14]} 47. Nb4 {[%emt 0:00:10]} Nd7 {[%emt 0:10:07]} 48. Nd5 {[%emt 0:01:48]} Nc5 {[%emt 0:06:57]} 49. Ke3 {[%emt 0:00:23]} Ne6 {[%emt 0:01:14]} 50. Kf3 {[%emt 0:00:17]} Nc7 {[%emt 0:01:22]} 51. Nf6 {[%emt 0:01:39]} Ke6 {[%emt 0:00:50]} 52. Nh7 {[%emt 0:00:21]} Ke7 {[%emt 0:01:24]} 53. Ng5 {[%emt 0:00:19]} Nb5 {[%emt 0:01:00]} 1/2-1/2

[Event "46th GRE-chT Premier 2018"]
[Site "Rio Achaia"]
[Date "2018.07.11"]
[Round "2"]
[White "Tsironis, Alexandros"]
[Black "Eleftheriou, Georgios"]
[Result "0-1"]
[ECO "B16"]
[WhiteElo "1994"]
[BlackElo "1790"]
[Annotator "NA"]
[PlyCount "148"]
[EventDate "2018.07.10"]
[EventType "team-tourn"]
[EventCountry "GRE"]
[SourceTitle "playchess.com"]
[Source "ChessBase"]
[SourceQuality "1"]
[TimeControl "40/5400+30:1800+30"]

1. e4 {[%emt 0:00:00]} c6 {[%emt 0:00:00]} 2. d4 {[%emt 0:00:00]} d5 {[%emt 0:00:00]} 3. Nc3 {[%emt 0:01:02]} dxe4 {[%emt 0:00:00]} 4. Nxe4 {[%emt 0:00:04]} Nf6 {[%emt 0:00:05]} 5. Nxf6+ {[%emt 0:00:05]} gxf6 {[%emt 0:00:10]} 6. Be3 {[%emt 0:04:22]} Bf5 {[%emt 0:02:45]} 7. Ne2 {[%emt 0:01:22]} h5 {[%emt 0:01:10]} 8. h4 {[%emt 0:01:52]} Nd7 {[%emt 0:02:25]} 9. Ng3 {[%emt 0:03:18]} Bg4 {[%emt 0:01:09]} 10. f3 {[%emt 0:33:25]} Qc7 {[%emt 0:04:50]} 11. Bf2 {[%emt 0:02:07]} Be6 {[%emt 0:01:24]} 12. Ne4 {[%emt 0:03:42]} Bh6 {[%emt 0:05:54]} 13. Bd3 {[%emt 0:02:49]} Rg8 {[%emt 0:04:13]} 14. Rg1 {[%emt 0:04:12]} f5 {[%emt 0:10:01]} 15. Nd2 {[%emt 0:00:49]} O-O-O {[%emt 0:06:54]} 16. c3 {[%emt 0:02:57]} Ne5 {[%emt 0:09:26]} 17. Be2 {[%emt 0:01:28]} Ng6 {[%emt 0:00:48]} 18. Qa4 {[%emt 0:01:58]} Kb8 {[%emt 0:06:36]} 19. O-O-O {[%emt 0:01:04]} Rd5 {[%emt 0:02:45]} 20. c4 {[%emt 0:04:10]} Ra5 {[%emt 0:05:11]} 21. Qb4 {[%emt 0:07:01]} Rxa2 {[%emt 0:03:39]} 22. Kb1 {[%emt 0:00:05]} Qa5 {[%emt 0:03:27]} 23. Qxa5 {[%emt 0:00:55]} Rxa5 {[%emt 0:00:08]} 24. Nb3 {[%emt 0:00:38]} Ra4 {[%emt 0:01:32]} 25. Nc5 {[%emt 0:05:22]} Bxc4 {[%emt 0:00:28]} 26. Nxa4 Bxe2 {[%emt 0:00:09]} 27. Rde1 {[%emt 0:02:58]} Bd3+ {[%emt 0:01:57]} 28. Ka2 {[%emt 0:00:11]} e6 {[%emt 0:00:58]} 29. Nc5 {[%emt 0:00:23]} Bb5 {[%emt 0:04:06]} 30. Nd7+ {[%emt 0:00:20]} Kc7 {[%emt 0:00:43]} 31. Nf6 {[%emt 0:00:58]} Rh8 {[%emt 0:01:24]} 32. Nxh5 {[%emt 0:00:34]} Bf8 {[%emt 0:01:21]} 33. g4 {[%emt 0:01:29]} Be7 {[%emt 0:02:11]} 34. Rh1 {[%emt 0:07:58]} Bc4+ {[%emt 0:01:23]} 35. b3 {[%emt 0:00:18]} Bd5 {[%emt 0:00:35]} 36. Rh3 {[%emt 0:00:07]} a5 {[%emt 0:05:10]} 37. Kb2 {[%emt 0:00:20]} b5 {[%emt 0:01:46]} 38. Bg3+ {[%emt 0:01:18]} Kb6 {[%emt 0:00:20]} 39. Nf4 {[%emt 0:05:02]} Bf6 {[%emt 0:03:07]} 40. Nxd5+ {[%emt 0:00:00]} cxd5 {[%emt 0:00:00]} 41. Kc3 {[%emt 0:06:14]} Nxh4 {[%emt 0:04:29]} 42. Bxh4 {[%emt 0:06:49]} Bxh4 {[%emt 0:00:13]} 43. Reh1 {[%emt 0:00:13]} Rc8+ {[%emt 0:06:46]} 44. Kd3 {[%emt 0:01:08]} Bg5 {[%emt 0:01:19]} 45. gxf5 {[%emt 0:01:36]} b4 {[%emt 0:01:12]} 46. Rb1 {[%emt 0:02:23]} Rc3+ {[%emt 0:01:12]} 47. Ke2 {[%emt 0:00:01]} exf5 {[%emt 0:01:06]} 48. Rh5 {[%emt 0:00:49]} f6 {[%emt 0:01:59]} 49. f4 {[%emt 0:00:19]} Bxf4 {[%emt 0:00:48]} 50. Rxf5 {[%emt 0:00:06]} Re3+ {[%emt 0:00:58]} 51. Kf2 {[%emt 0:00:29]} Re4 {[%emt 0:00:50]} 52. Rxf6+ {[%emt 0:02:33]} Kb5 {[%emt 0:00:21]} 53. Kf3 {[%emt 0:02:42]} Bd2 {[%emt 0:02:02]} 54. Rg1 {[%emt 0:07:57]} Re3+ {[%emt 0:01:25]} 55. Kf2 {[%emt 0:00:13]} Rxb3 {[%emt 0:00:08]} 56. Ke2 {[%emt 0:00:40]} Bc3 {[%emt 0:01:01]} 57. Rg5 {[%emt 0:00:46]} Rb2+ {[%emt 0:01:01]} 58. Kf3 {[%emt 0:01:29]} Kc4 {[%emt 0:02:38]} 59. Rff5 {[%emt 0:01:35]} Bxd4 {[%emt 0:01:49]} 60. Rxd5 {[%emt 0:00:09]} a4 {[%emt 0:01:11]} 61. Ke4 {[%emt 0:02:15]} Re2+ {[%emt 0:01:06]} 62. Kf3 {[%emt 0:00:01]} Re3+ {[%emt 0:00:27]} 63. Kf4 {[%emt 0:00:37]} Rd3 {[%emt 0:00:41]} 64. Ke4 {[%emt 0:00:20]} a3 {[%emt 0:00:33]} 65. Ra5 {[%emt 0:00:42]} Re3+ {[%emt 0:01:08]} 66. Kf4 {[%emt 0:00:05]} Re7 {[%emt 0:00:44]} 67. Rg3 {[%emt 0:00:42]} Ra7 {[%emt 0:01:21]} 68. Rxa7 {[%emt 0:02:21]} Bxa7 {[%emt 0:00:07]} 69. Ke4 {[%emt 0:00:01]} Bd4 {[%emt 0:01:14]} 70. Rg2 {[%emt 0:00:10]} Bc3 {[%emt 0:00:34]} 71. Rh2 {[%emt 0:00:20]} Kb3 {[%emt 0:00:11]} 72. Kd3 {[%emt 0:00:06]} a2 {[%emt 0:00:13]} 73. Rh1 {[%emt 0:00:50]} a1=Q {[%emt 0:00:11]} 74. Re1 {[%emt 0:00:41]} Bxe1 {[%emt 0:00:32] Kd4} 0-1